fUST/lending_fUST_20240605
["ID","MTS","AMOUNT","RATE_DAILY","PERIOD"]
[328545395,1717517060915,154.92253873,9.999e-05,2]
[328545396,1717517240151,-2111.8751688,0.00018467,2]
[328545397,1717517240175,-1981.96946842,0.00018468,2]
[328545398,1717517240198,-164.98319801,0.0001847,2]
[328545399,1717517240220,-201.60499105,0.00018473,2]
[328545400,1717517240240,-155.53240827,0.00018484,2]
[328545401,1717517240260,-606.06312262,0.000185,2]
[328545402,1717517240281,-1353.96157468,0.0002,2]
[328545403,1717517240301,-1454.67178386,0.0002,3]
[328545404,1717517240321,-166.51919584,0.00020361,2]
[328545405,1717517240339,-1155.21921896,0.00022173,2]
[328545406,1717517240358,-832.61853232,0.00022173,2]
[328545407,1717517240378,-5727.77834836,0.00022182,2]
[328545408,1717517240399,-758.59,0.00022184,2]
[328545409,1717517240419,-500.0,0.00022184,2]
[328545410,1717517240441,-500.0,0.00022184,2]
[328545411,1717517240460,-500.0,0.00022184,2]
[328545412,1717517240483,-500.0,0.00022184,2]
[328545413,1717517240503,-500.0,0.00022184,2]
[328545414,1717517240523,-725.79,0.00022184,2]
[328545415,1717517240542,-500.0,0.00022185,2]
[328545416,1717517240561,-258.34900191,0.00022185,2]
[328545417,1717517240582,-500.0,0.00022185,2]
[328545418,1717517240603,-500.0,0.00022185,2]
[328545419,1717517240625,-625.76,0.00022185,2]
[328545420,1717517240644,-279.48451055,0.00022185,2]
[328545421,1717517240662,-378.23613758,0.00022185,2]
[328545422,1717517240685,-500.0,0.00022185,2]
[328545423,1717517240704,-500.0,0.00022185,2]
[328545424,1717517240724,-500.0,0.00022185,2]
[328545425,1717517240744,-268.37591726,0.00022185,2]
[328545426,1717517240769,-500.0,0.00022185,2]
[328545427,1717517240790,-500.0,0.00022185,2]
[328545428,1717517240808,-413.06,0.00022185,2]
[328545429,1717517240829,-500.0,0.00022185,2]
[328545430,1717517240850,-500.0,0.00022185,2]
[328545431,1717517240870,-3378.86907174,0.00022186,2]
[328545432,1717517240888,-488.84521684,0.00022186,2]
[328545433,1717517240907,-500.0,0.00022186,2]
[328545434,1717517240926,-500.0,0.00022186,2]
[328545435,1717517240944,-436.68127201,0.00022186,2]
[328545436,1717517240966,-459.42874648,0.00022186,2]
[328545437,1717517252097,-160.63607597,0.00018467,2]
[328545454,1717517315447,207.1380716,9.999e-05,10]
[328545459,1717517331414,207.1380716,0.00018465,10]
[328545463,1717517340644,691.90816563,9.999e-05,2]
[328545465,1717517343561,523.93203178,9.999e-05,2]
[328545466,1717517346601,685.80898577,9.999e-05,2]
[328545472,1717517352404,-3017.70136052,0.00018464,2]
[328545473,1717517352424,-234.10638335,0.00018465,2]
[328545474,1717517352444,-523.88381393,0.00018465,2]
[328545475,1717517352465,-484.13726031,0.00018465,2]
[328545476,1717517352486,-249.36740512,0.00018465,2]
[328545477,1717517352508,-154.92253873,0.00018465,2]
[328545478,1717517352528,-372.8450139,0.00018465,2]
[328545479,1717517352548,-19292.48922816,0.00018465,2]
[328545480,1717517352567,-2111.8751688,0.00018466,2]
[328545481,1717517352587,-160.68177861,0.000185,2]
[328545482,1717517352606,-162.93661136,0.00019,2]
[328545483,1717517352627,-807.13363078,0.0002,2]
[328545484,1717517352647,-142.72725674,0.0002,3]
[328545485,1717517354146,-638.40147697,0.0002,3]
[328545486,1717517354168,-369.09130652,0.00020086,2]
[328545489,1717517356118,230.35721651,0.00018464,2]
[328545553,1717517432888,-2111.8751688,0.00018444,2]
[328545556,1717517432898,-687.55415781,0.00018462,2]
[328545557,1717517432908,-154.92253873,0.00018462,2]
[328545559,1717517432918,-490.34797902,0.00018462,2]
[328545561,1717517432927,-527.51327274,0.00018462,2]
[328545563,1717517432937,-522.1812879,0.00018463,2]
[328545565,1717517432946,-9395.36152365,0.00018463,2]
[328545567,1717517432956,-17971.95989587,0.00018464,2]
[328545604,1717517433313,-712.81625,0.00018464,2]
[328545606,1717517433326,-463.7665836,0.00018464,2]
[328545770,1717517438904,-998.90879758,0.00018464,2]
[328545771,1717517438918,-773.29627998,0.00018464,2]
[328545774,1717517439087,-6514.8619149,0.00018464,2]
[328545776,1717517439097,-162.93661136,0.00019,2]
[328545778,1717517439106,-691.30254999,0.00022183,2]
[328545779,1717517439116,-500.0,0.00022184,2]
[328545781,1717517439125,-500.0,0.00022184,2]
[328545783,1717517439134,-500.0,0.00022184,2]
[328545785,1717517439143,-771.18,0.00022184,2]
[328545787,1717517439152,-500.0,0.00022184,2]
[328545789,1717517439162,-568.03194329,0.00022184,2]
[328545791,1717517439171,-500.0,0.00022184,2]
[328545793,1717517439180,-500.0,0.00022184,2]
[328545795,1717517439189,-500.0,0.00022184,2]
[328545797,1717517439198,-500.0,0.00022184,2]
[328545799,1717517439207,-500.0,0.00022184,2]
[328545801,1717517439216,-502.74857879,0.00022184,2]
[328545803,1717517439226,-502.87678117,0.00022184,2]
[328545805,1717517439235,-500.0,0.00022184,2]
[328545807,1717517439244,-500.0,0.00022184,2]
[328545809,1717517439253,-500.0,0.00022184,2]
[328545811,1717517439263,-504.38106722,0.00022184,2]
[328545813,1717517439272,-500.0,0.00022184,2]
[328545815,1717517439282,-500.0,0.00022184,2]
[328545817,1717517439292,-500.0,0.00022185,2]
[328545819,1717517439300,-563.5,0.00022185,2]
[328545821,1717517439310,-517.42,0.00022185,2]
[328545823,1717517439319,-500.0,0.00022185,2]
[328545825,1717517439329,-500.0,0.00022185,2]
[328545827,1717517439338,-500.0,0.00022185,2]
[328545829,1717517439347,-500.0,0.00022185,2]
[328545831,1717517439357,-500.0,0.00022185,2]
[328545833,1717517439366,-500.0,0.00022185,2]
[328545835,1717517439375,-441.80907415,0.00022185,2]
[328545837,1717517439387,-58.19092585,0.00022185,2]
[328545839,1717517439396,-500.0,0.00022185,2]
[328545841,1717517439405,-246.3292734,0.00022185,2]
[328545844,1717517439416,-253.6707266,0.00022185,2]
[328545846,1717517439425,-500.0,0.00022185,2]
[328545847,1717517439435,-500.0,0.00022185,2]
[328545849,1717517439444,-500.0,0.00022185,2]
[328545851,1717517439453,-500.0,0.00022185,2]
[328545853,1717517439462,-500.0,0.00022185,2]
[328545855,1717517439471,-500.0,0.00022185,2]
[328545857,1717517439481,-500.0,0.00022185,2]
[328545859,1717517439490,-502.69287207,0.00022185,2]
[328545861,1717517439499,-500.0,0.00022185,2]
[328545863,1717517439508,-500.0,0.00022185,2]
[328545865,1717517439517,-500.0,0.00022185,2]
[328545867,1717517439526,-500.0,0.00022185,2]
[328545869,1717517439536,-500.0,0.00022185,2]
[328545871,1717517439546,-510.54717067,0.00022185,2]
[328545873,1717517439556,-500.0,0.00022185,2]
[328545875,1717517439566,-500.0,0.00022185,2]
[328545877,1717517439574,-500.0,0.00022185,2]
[328545879,1717517439583,-500.0,0.00022185,2]
[328545881,1717517439592,-500.0,0.00022185,2]
[328545883,1717517439602,-500.0,0.00022185,2]
[328545885,1717517439613,-591.0929592,0.00022185,2]
[328545887,1717517439622,-500.0,0.00022185,2]
[328545889,1717517439631,-500.0,0.00022185,2]
[328545891,1717517439640,-500.0,0.00022185,2]
[328545893,1717517439649,-500.0,0.00022185,2]
[328545895,1717517439659,-500.0,0.00022185,2]
[328545897,1717517439668,-500.0,0.00022185,2]
[328545899,1717517439678,-500.0,0.00022185,2]
[328545901,1717517439687,-500.0,0.00022185,2]
[328545903,1717517439696,-500.0,0.00022185,2]
[328545905,1717517439706,-501.16928298,0.00022185,2]
[328545907,1717517439715,-40.57125352,0.00022186,2]
[328545909,1717517439724,-523.02,0.00022186,2]
[328545911,1717517439734,-269.03282548,0.00022186,2]
[328545913,1717517439743,-220.29871372,0.00022359,2]
[328545915,1717517439752,-807.51577586,0.00022457,2]
[328545917,1717517439762,-500.0,0.00022457,2]
[328545919,1717517439772,-500.0,0.00022457,2]
[328545921,1717517439782,-231.50402638,0.00022457,2]
[328545923,1717517439794,-807.51577586,0.00022457,2]
[328545925,1717517439803,-500.0,0.00022457,2]
[328545927,1717517439813,-807.51577586,0.00022457,2]
[328545929,1717517439824,-500.0,0.00022457,2]
[328545931,1717517439835,-807.51577586,0.00022457,2]
[328545933,1717517439844,-500.0,0.00022457,2]
[328545935,1717517439854,-411.08083101,0.00022457,2]
[328545937,1717517439865,-807.51577586,0.00022457,2]
[328545939,1717517439875,-633.839221,0.00022457,2]
[328545941,1717517439884,-807.51577586,0.00022457,2]
[328545943,1717517439893,-500.0,0.00022457,2]
[328545945,1717517439905,-500.0,0.00022457,2]
[328545947,1717517439914,-807.51577586,0.00022457,2]
[328545949,1717517439923,-500.0,0.00022457,2]
[328545951,1717517439932,-807.51577586,0.00022457,2]
[328545953,1717517439941,-500.0,0.00022457,2]
[328545955,1717517439950,-807.51577586,0.00022457,2]
[328545957,1717517439960,-500.0,0.00022457,2]
[328545959,1717517439970,-807.51577586,0.00022457,2]
[328545961,1717517439979,-500.0,0.00022457,2]
[328545963,1717517439989,-807.51577586,0.00022457,2]
[328545965,1717517439999,-500.0,0.00022457,2]
[328545967,1717517440008,-730.87946076,0.00022457,2]
[328545970,1717517440021,-76.6363151,0.00022457,2]
[328545972,1717517440030,-372.32146488,0.00022457,2]
[328546036,1717517442526,-500.0,0.00022184,2]
[328546037,1717517442538,-127.67853512,0.00022457,2]
[328546038,1717517442548,-807.51577586,0.00022457,2]
[328546039,1717517442558,-500.0,0.00022457,2]
[328546040,1717517442567,-807.51577586,0.00022457,2]
[328546041,1717517442576,-807.51577586,0.00022457,2]
[328546042,1717517442586,-500.0,0.00022457,2]
[328546043,1717517442595,-807.51577586,0.00022457,2]
[328546044,1717517442604,-807.51577586,0.00022457,2]
[328546045,1717517442613,-807.51577586,0.00022457,2]
[328546046,1717517442623,-807.51577586,0.00022457,2]
[328546047,1717517442633,-807.51577586,0.00022457,2]
[328546048,1717517442642,-500.0,0.00022457,2]
[328546049,1717517442651,-807.51577586,0.00022457,2]
[328546050,1717517442661,-807.51577586,0.00022457,2]
[328546051,1717517442670,-807.51577586,0.00022457,2]
[328546052,1717517442680,-807.51577586,0.00022457,2]
[328546053,1717517442689,-495.05154258,0.00022457,2]
[328546054,1717517442701,-312.46423328,0.00022457,2]
[328546055,1717517442711,-807.51577586,0.00022457,2]
[328546056,1717517442720,-807.51577586,0.00022457,2]
[328546057,1717517442729,-807.51577586,0.00022457,2]
[328546058,1717517442739,-807.51577586,0.00022457,2]
[328546059,1717517442749,-807.51577586,0.00022457,2]
[328546060,1717517442759,-807.51577586,0.00022457,2]
[328546061,1717517442768,-807.51577586,0.00022457,2]
[328546062,1717517442778,-807.51577586,0.00022457,2]
[328546063,1717517442790,-807.51577586,0.00022457,2]
[328546064,1717517442799,-807.51577586,0.00022457,2]
[328546065,1717517442808,-807.51577586,0.00022457,2]
[328546066,1717517442822,-807.51577586,0.00022457,2]
[328546067,1717517442832,-807.51577586,0.00022457,2]
[328546068,1717517442841,-21.05417576,0.00022457,2]
[328546069,1717517442853,-556.39957601,0.00022457,2]
[328546070,1717517442867,-230.06202409,0.00022457,2]
[328546071,1717517442877,-807.51577586,0.00022457,2]
[328546072,1717517442887,-807.51577586,0.00022457,2]
[328546073,1717517442898,-807.51577586,0.00022457,2]
[328546074,1717517442908,-807.51577586,0.00022457,2]
[328546075,1717517442917,-807.51577586,0.00022457,2]
[328546076,1717517442927,-807.51577586,0.00022457,2]
[328546077,1717517442936,-807.51577586,0.00022457,2]
[328546078,1717517442946,-807.51577586,0.00022457,2]
[328546079,1717517442955,-807.51577586,0.00022457,2]
[328546080,1717517442964,-807.51577586,0.00022457,2]
[328546081,1717517442974,-807.51577586,0.00022457,2]
[328546082,1717517442984,-807.51577586,0.00022457,2]
[328546083,1717517442993,-807.51577586,0.00022457,2]
[328546084,1717517443003,-807.51577586,0.00022457,2]
[328546085,1717517443013,-807.51577586,0.00022457,2]
[328546086,1717517443023,-807.51577586,0.00022457,2]
[328546087,1717517443036,-807.51577586,0.00022457,2]
[328546088,1717517443044,-807.51577586,0.00022457,2]
[328546089,1717517443053,-807.51577586,0.00022457,2]
[328546090,1717517443062,-807.51577586,0.00022457,2]
[328546091,1717517443072,-807.51577586,0.00022457,2]
[328546092,1717517443082,-807.51577586,0.00022457,2]
[328546093,1717517443092,-807.51577586,0.00022457,2]
[328546094,1717517443101,-807.51577586,0.00022457,2]
[328546095,1717517443110,-500.0,0.00022458,2]
[328546097,1717517443120,-725.79,0.00022458,2]
[328546099,1717517443129,-500.0,0.00022458,2]
[328546100,1717517443138,-500.0,0.00022458,2]
[328546102,1717517443149,-500.0,0.00022458,2]
[328546103,1717517443158,-771.18,0.00022458,2]
[328546104,1717517443167,-500.0,0.00022458,2]
[328546105,1717517443177,-500.0,0.00022458,2]
[328546106,1717517443186,-61.11939065,0.00022459,2]
[328546107,1717517443199,-116.09060935,0.00022459,2]
[328546108,1717517443209,-563.22,0.00022459,2]
[328546109,1717517443219,-73.53165308,0.00022459,2]
[328546145,1717517443979,-500.0,0.00022185,2]
[328546146,1717517443988,-500.0,0.00022185,2]
[328546147,1717517443998,-530.0058954,0.00022185,2]
[328546148,1717517444008,-307.09834692,0.00022459,2]
[328546149,1717517444017,-500.0,0.00022459,2]
[328546150,1717517444027,-500.0,0.00022459,2]
[328546151,1717517444036,-259.55563509,0.00022459,2]
[328546152,1717517444048,-240.44436491,0.00022459,2]
[328546153,1717517444057,-502.04,0.00022459,2]
[328546154,1717517444067,-500.0,0.00022459,2]
[328546155,1717517444077,-505.94,0.00022459,2]
[328546156,1717517444086,-500.0,0.00022459,2]
[328546157,1717517444096,-523.25687373,0.00022459,2]
[328546158,1717517444105,-500.0,0.00022459,2]
[328546160,1717517444114,-500.0,0.00022459,2]
[328546162,1717517444123,-500.0,0.00022459,2]
[328546164,1717517444132,-500.0,0.00022459,2]
[328546166,1717517444141,-500.0,0.00022459,2]
[328546168,1717517444150,-500.0,0.00022459,2]
[328546169,1717517444159,-500.0,0.00022459,2]
[328546170,1717517444168,-500.0,0.00022459,2]
[328546171,1717517444178,-500.0,0.00022459,2]
[328546172,1717517444187,-500.0,0.00022459,2]
[328546173,1717517444198,-500.0,0.00022459,2]
[328546174,1717517444207,-500.0,0.00022459,2]
[328546175,1717517444216,-504.57259745,0.00022459,2]
[328546176,1717517444226,-500.0,0.0002246,2]
[328546177,1717517444236,-4234.71341694,0.00022627,2]
[328546178,1717517444245,-220.29871368,0.00022702,2]
[328546179,1717517444255,-698.82,0.00022719,3]
[328546180,1717517444264,-155.29,0.0002272,3]
[328546181,1717517444273,-232.94,0.0002272,3]
[328546182,1717517444283,-443.47317086,0.00022728,2]
[328546183,1717517444294,-500.0,0.00022729,2]
[328546184,1717517444303,-500.0,0.00022729,2]
[328546185,1717517444312,-422.70219657,0.00022729,2]
[328546186,1717517444321,-500.0,0.00022729,2]
[328546187,1717517444331,-500.0,0.00022729,2]
[328546188,1717517444340,-500.0,0.00022729,2]
[328546189,1717517444349,-500.0,0.00022729,2]
[328546190,1717517444359,-500.0,0.0002273,2]
[328546191,1717517444369,-500.0,0.0002273,2]
[328546192,1717517444380,-500.0,0.00022732,2]
[328546193,1717517444389,-725.79,0.00022732,2]
[328546194,1717517444398,-500.0,0.00022732,2]
[328546195,1717517444407,-500.0,0.00022732,2]
[328546196,1717517444417,-500.0,0.00022732,2]
[328546197,1717517444518,-771.18,0.00022732,2]
[328546198,1717517444528,-500.0,0.00022732,2]
[328546199,1717517444540,-500.0,0.00022732,2]
[328546200,1717517444549,-528.05,0.00022733,2]
[328546201,1717517444559,-500.0,0.00022733,2]
[328546202,1717517444568,-500.0,0.00022733,2]
[328546203,1717517444577,-547.46,0.00022733,2]
[328546204,1717517444586,-271.55,0.00022733,2]
[328546205,1717517444595,-500.0,0.00022733,2]
[328546206,1717517444604,-500.0,0.00022733,2]
[328546207,1717517444613,-500.0,0.00022734,2]
[328546208,1717517444623,-500.0,0.00022992,2]
[328546209,1717517444632,-20411.8591057,0.00022993,2]
[328546210,1717517444641,-500.0,0.00022997,2]
[328546211,1717517444650,-4601.25373836,0.00023,2]
[328546212,1717517444659,-8697.44491053,0.00023,7]
[328546213,1717517444669,-238.36716116,0.00023,2]
[328546214,1717517444678,-154.92253873,0.00023,2]
[328546215,1717517444688,-500.0,0.00023003,2]
[328546216,1717517444697,-500.0,0.00023003,2]
[328546217,1717517444706,-500.0,0.00023003,2]
[328546218,1717517444715,-8848.09537472,0.00023005,7]
[328546219,1717517444724,-23799.9021662,0.00023006,7]
[328546220,1717517444735,-500.0,0.00023006,2]
[328546221,1717517444745,-725.79,0.00023006,2]
[328546222,1717517444754,-500.0,0.00023006,2]
[328546223,1717517444765,-500.0,0.00023006,2]
[328546224,1717517444775,-500.0,0.00023006,2]
[328546225,1717517444784,-771.18,0.00023006,2]
[328546226,1717517444794,-500.0,0.00023006,2]
[328546227,1717517444803,-604.0914073,0.00023006,2]
[328546228,1717517444813,-500.0,0.00023007,2]
[328546229,1717517444824,-500.0,0.00023007,2]
[328546230,1717517444835,-211.67,0.00023007,2]
[328546231,1717517444845,-65.10153168,0.00023007,2]
[328546232,1717517444859,-434.89846832,0.00023007,2]
[328546233,1717517444868,-11.80434789,0.00023008,2]
[328546234,1717517444880,-142.58565211,0.00023008,2]
[328546235,1717517444890,-220.29871368,0.00023045,2]
[328546236,1717517444900,-153.0,0.0002326,2]
[328546237,1717517444910,-500.0,0.00023277,2]
[328546238,1717517444919,-155.74350156,0.00023278,2]
[328546239,1717517444928,-1163.81628374,0.00023278,2]
[328546240,1717517444938,-310.55438942,0.00023278,2]
[328546241,1717517444947,-879.31969109,0.00023278,2]
[328546242,1717517444957,-282.02695682,0.00023278,2]
[328546243,1717517444966,-222.86775603,0.00023279,2]
[328546244,1717517444975,-500.0,0.00023279,2]
[328546245,1717517444984,-500.0,0.0002328,2]
[328546246,1717517444995,-725.79,0.0002328,2]
[328546247,1717517445004,-500.0,0.0002328,2]
[328546248,1717517445013,-500.0,0.0002328,2]
[328546249,1717517445022,-500.0,0.0002328,2]
[328546250,1717517445032,-771.18,0.0002328,2]
[328546251,1717517445044,-500.0,0.0002328,2]
[328546252,1717517445053,-500.0,0.00023281,2]
[328546253,1717517445063,-566.59,0.00023281,2]
[328546254,1717517445073,-500.0,0.00023281,2]
[328546255,1717517445082,-220.29871368,0.00023387,2]
[328546256,1717517445091,-500.0,0.00023551,2]
[328546257,1717517445101,-500.0,0.00023554,2]
[328546258,1717517445111,-725.79,0.00023554,2]
[328546259,1717517445120,-465.0768619,0.00023554,2]
[328546260,1717517445129,-500.0,0.00023554,2]
[328546261,1717517445139,-500.0,0.00023554,2]
[328546262,1717517445149,-771.18,0.00023554,2]
[328546263,1717517445158,-500.0,0.00023554,2]
[328546264,1717517445167,-324.89789542,0.00023555,2]
[328546265,1717517445177,-500.0,0.00023555,2]
[328546266,1717517445186,-500.0,0.00023556,2]
[328546267,1717517445196,-151.0,0.00023628,5]
[328546268,1717517445205,-220.29871368,0.0002373,2]
[328546269,1717517445215,-500.0,0.00023825,2]
[328546270,1717517445224,-500.0,0.00023828,2]
[328546271,1717517445234,-725.79,0.00023828,2]
[328546272,1717517445245,-500.0,0.00023828,2]
[328546273,1717517445255,-500.0,0.00023828,2]
[328546274,1717517445264,-46.10674803,0.00023828,2]
[328546299,1717517446815,-457.50584278,0.00022161,2]
[328546300,1717517446826,-154.92253873,0.00022183,2]
[328546301,1717517446837,-265.99546965,0.00022185,2]
[328546302,1717517447164,-234.00453035,0.00022185,2]
[328546303,1717517447176,-500.0,0.00022459,2]
[328546304,1717517447189,-500.0,0.00022733,2]
[328546305,1717517447199,-500.0,0.00023007,2]
[328546306,1717517447209,-725.07325197,0.00023828,2]
[328546307,1717517447218,-6.71663563,0.00023828,2]
[328546337,1717517586179,154.92253873,9.999e-05,2]
[328546338,1717517586251,154.92253873,9.999e-05,2]
[328546339,1717517589269,154.92253873,9.999e-05,2]
[328546340,1717517601188,1341.97127634,9.999e-05,2]
[328546341,1717517612577,154.92253873,9.999e-05,2]
[328546342,1717517621152,181.85934055,9.999e-05,2]
[328546343,1717517623744,2640.4246397,9.999e-05,2]
[328546344,1717517624657,154.92253873,9.999e-05,2]
[328546345,1717517632624,154.92253873,9.999e-05,2]
[328546346,1717517640438,426.67127023,9.999e-05,2]
[328546347,1717517642593,158.91065437,9.999e-05,2]
[328546348,1717517648990,1500.09697047,9.999e-05,2]
[328546349,1717517649339,156.61585139,9.999e-05,2]
[328546350,1717517652927,13613.89553736,9.999e-05,2]
[328546351,1717517658998,190.34144755,0.000156,2]
[328546352,1717517659192,263.67450645,9.999e-05,2]
[328546353,1717517666786,721.70560726,9.999e-05,2]
[328546354,1717517666987,216.14213589,9.999e-05,2]
[328546355,1717517667433,154.92253873,9.999e-05,2]
[328546356,1717517668662,241.78042164,9.999e-05,2]
[328546357,1717517672908,16179.36673626,9.999e-05,2]
[328546358,1717517676824,529.79177973,9.999e-05,2]
[328546359,1717517684806,156.79013596,9.999e-05,2]
[328546360,1717517689265,2695.75764409,9.999e-05,2]
[328546361,1717517692922,1567.31590735,9.999e-05,2]
[328546362,1717517698293,194.93299377,9.999e-05,2]
[328546363,1717517770349,1902.27689005,9.999e-05,2]
[328546364,1717517961436,1525.23974554,0.000202,10]
[328546389,1717518227307,181.85934055,9.999e-05,2]
[328546390,1717518303998,355.55939186,9.999e-05,2]
[328546391,1717518343902,239.37753145,9.999e-05,2]
[328546392,1717518348743,3147.73786608,0.00029902,40]
[328546393,1717518443168,-3069.34478488,0.0001787,2]
[328546394,1717518443193,-2035.10504658,0.00017871,2]
[328546395,1717518443212,-355.55939186,0.00017872,2]
[328546396,1717518443233,-1981.96946842,0.00017872,2]
[328546397,1717518443254,-269.62047628,0.000179,2]
[328546398,1717518443276,-297.89941166,0.000179,2]
[328546399,1717518443295,-133.41757296,0.00017995,2]
[328546400,1717518449114,-60.48777027,0.00017995,2]
[328546401,1717518449135,-1820.00012688,0.00017995,2]
[328546402,1717518449156,-182.72533149,0.00017995,2]
[328546403,1717518449181,-329.52606441,0.00017996,2]
[328546404,1717518450127,-4794.51492846,0.00017996,2]
[328546411,1717518548366,-185.24644316,0.00017995,2]
[328546412,1717518548391,-384.02610814,0.00017995,2]
[328546413,1717518548415,-3067.73324194,0.00017995,2]
[328546414,1717518548442,-2030.76484656,0.00017995,2]
[328546415,1717518548467,-342.59218486,0.00017996,2]
[328546416,1717518548495,-52862.4692069,0.00017997,2]
[328546417,1717518548520,-897.83869455,0.00018,2]
[328546418,1717518548542,-269.62047628,0.00018597,2]
[328546419,1717518548566,-269.62047628,0.00019295,2]
[328546420,1717518548597,-297.89941162,0.00019471,2]
[328546421,1717518548622,-269.62047628,0.00019992,2]
[328546422,1717518548644,-528.58427928,0.0002,4]
[328546423,1717518548667,-154.92253873,0.0002,2]
[328546424,1717518548693,-269.62047628,0.00020689,2]
[328546425,1717518548716,-776.46,0.00020776,3]
[328546426,1717518548739,-348.20435789,0.00020784,2]
[328546427,1717518548764,-1609.77942127,0.00020784,2]
[328546428,1717518548789,-500.0,0.00020784,2]
[328546429,1717518548827,-1609.77942127,0.00020784,2]
[328546430,1717518548852,-1609.77942127,0.00020784,2]
[328546431,1717518548874,-156.786759,0.00020784,2]
[328546432,1717518548898,-1609.77942127,0.00020784,2]
[328546433,1717518548923,-1609.77942127,0.00020784,2]
[328546434,1717518548950,-1609.77942127,0.00020784,2]
[328546435,1717518548977,-1609.77942127,0.00020784,2]
[328546436,1717518549003,-1609.77942127,0.00020784,2]
[328546437,1717518549030,-1609.77942127,0.00020784,2]
[328546438,1717518549057,-1609.77942127,0.00020784,2]
[328546439,1717518549082,-1609.77942127,0.00020784,2]
[328546440,1717518549108,-1609.77942127,0.00020784,2]
[328546441,1717518549133,-1609.77942127,0.00020784,2]
[328546442,1717518549158,-1609.77942127,0.00020784,2]
[328546443,1717518549186,-1609.77942127,0.00020784,2]
[328546444,1717518549214,-1609.77942127,0.00020784,2]
[328546445,1717518549242,-1609.77942127,0.00020784,2]
[328546446,1717518549271,-1609.77942127,0.00020784,2]
[328546447,1717518549438,-281.93720378,0.00020784,2]
[328546448,1717518570122,-324.49593017,0.000189,2]
[328546449,1717518570143,-155.17916283,0.0002,2]
[328546450,1717518570166,-1327.84221749,0.00020784,2]
[328546451,1717518570188,-1609.77942127,0.00020784,2]
[328546452,1717518570214,-1609.77942127,0.00020784,2]
[328546453,1717518570239,-1609.77942127,0.00020784,2]
[328546454,1717518570261,-1609.77942127,0.00020784,2]
[328546455,1717518570283,-1609.77942127,0.00020784,2]
[328546456,1717518570307,-1609.77942127,0.00020784,2]
[328546457,1717518570330,-1609.77942127,0.00020784,2]
[328546458,1717518570352,-1609.77942127,0.00020784,2]
[328546459,1717518570374,-1609.77942127,0.00020784,2]
[328546460,1717518570397,-1609.77942127,0.00020784,2]
[328546461,1717518570419,-1609.77942127,0.00020784,2]
[328546462,1717518570440,-1609.77942127,0.00020784,2]
[328546463,1717518570464,-1609.77942127,0.00020784,2]
[328546464,1717518570487,-1609.77942127,0.00020784,2]
[328546465,1717518570510,-1609.77942127,0.00020784,2]
[328546466,1717518570532,-1609.77942127,0.00020784,2]
[328546467,1717518570555,-1609.77942127,0.00020784,2]
[328546468,1717518570578,-1609.77942127,0.00020784,2]
[328546469,1717518570599,-1609.77942127,0.00020784,2]
[328546470,1717518570620,-1609.77942127,0.00020784,2]
[328546471,1717518570642,-1609.77942127,0.00020784,2]
[328546472,1717518570665,-1609.77942127,0.00020784,2]
[328546473,1717518570687,-1609.77942127,0.00020784,2]
[328546474,1717518570710,-1609.77942127,0.00020784,2]
[328546475,1717518570731,-1609.77942127,0.00020784,2]
[328546476,1717518570754,-1609.77942127,0.00020784,2]
[328546477,1717518570776,-1609.77942127,0.00020784,2]
[328546478,1717518570798,-1609.77942127,0.00020784,2]
[328546479,1717518570820,-1609.77942127,0.00020784,2]
[328546480,1717518570842,-1609.77942127,0.00020784,2]
[328546481,1717518570973,-1609.77942127,0.00020784,2]
[328546482,1717518570995,-1609.77942127,0.00020784,2]
[328546483,1717518571016,-1609.77942127,0.00020784,2]
[328546484,1717518571041,-1609.77942127,0.00020784,2]
[328546485,1717518571064,-1609.77942127,0.00020784,2]